bitfinex-derivatives/quotes_BNBF0:USTF0_20251225
["timestamp","ask_amount","ask_price","bid_price","bid_amount"]
[1766685967311,0.20678345,841.65,840.99,0.88734715]
[1766685968411,0.20678345,841.65,841.01,0.88734715]
[1766685969310,0.20678345,841.65,841.02,0.88734715]
[1766685969912,0.20678345,841.65,841.02,9.79499582]
[1766685970310,0.20678345,841.65,841.03,0.88734715]
[1766685971512,0.20678345,841.65,841.04,0.88734715]
[1766685973312,0.20678345,841.65,841.05,0.88734715]
[1766685975318,0.20678345,841.65,841.07,0.88734715]
[1766685976117,0.20678345,841.65,841.08,0.88734715]
[1766686012736,0.20678345,841.65,841.09,0.88734715]
[1766686014039,0.20678345,841.65,841.09,9.87679246]
[1766686017541,0.20678345,841.65,841.09,0.88734715]
[1766686025143,0.20678345,841.65,841.15,0.88734715]
[1766686026144,0.20678345,841.65,841.14,0.88734715]
[1766686027246,0.20678345,841.65,841.13,8.83245542]
[1766686027247,0.20678345,841.65,841.13,9.71980257]
[1766686029245,0.20678345,841.65,841.13,0.88734715]
[1766686030348,0.20678345,841.65,841.12,0.88734715]
[1766686032045,0.20678345,841.65,841.11,0.88734715]
[1766686032947,0.20678345,841.65,841.12,0.88734715]
[1766686033249,0.20678345,841.65,841.13,0.88734715]
[1766686034246,0.20678345,841.65,841.13,9.98565004]
[1766686036349,0.20678345,841.65,841.13,9.09830289]
[1766686037848,0.20678345,841.65,841.12,0.88734715]
[1766686038052,0.20678345,841.65,841.14,0.88734715]
[1766686039348,0.20678345,841.65,841.13,0.88734715]
[1766686039652,0.20678345,841.65,841.14,0.88734715]
[1766686040155,0.20678345,841.65,841.13,0.88734715]
[1766686043254,0.20678345,841.65,841.12,0.88734715]
[1766686050364,0.88888896,841.9,841.12,0.88734715]
[1766686050565,0.88888896,842.01,841.23,0.88734715]
[1766686050765,0.20674352,841.8,841.23,9.83643748]
[1766686051064,0.20674352,841.8,841.23,8.94909033]
[1766686054364,0.20674352,841.8,841.19,0.88734715]
[1766686055062,0.20674352,841.8,841.18,0.88734715]
[1766686068579,0.20674352,841.8,841.13,0.88734715]
[1766686069178,0.20674352,841.8,841.14,0.88734715]
[1766686069575,0.20674352,841.8,841.12,0.88734715]
[1766686069979,0.20674352,841.8,841.06,0.88734715]
[1766686070276,0.20674352,841.8,841.07,0.88734715]
[1766686071575,0.20674352,841.8,841.07,9.78597634]
[1766686072576,0.20674352,841.8,841.07,8.89862919]
[1766686074783,0.20674352,841.8,841.06,0.88734715]
[1766686076282,0.20674352,841.8,840.15,2.95491084]
[1766686076283,0.20674352,841.8,841.04,0.88734715]
[1766686076782,0.20674352,841.8,841.02,0.88734715]
[1766686081388,0.20674352,841.8,841.01,0.88734715]
[1766686085797,0.20674352,841.8,841.12,0.88734715]
[1766686086095,0.20674352,841.8,841.12,13.9541331]
[1766686086693,0.20674352,841.8,841.14,0.88734715]
[1766686086896,0.20674352,841.8,841.17,0.88734715]
[1766686093101,0.20674352,841.8,841.16,0.88734715]
[1766686097307,0.20674352,841.8,841.17,0.88734715]
[1766686098205,0.20674352,841.8,841.17,13.96197443]
[1766686101109,0.20674352,841.8,841.17,13.07462728]
[1766686101310,0.20674352,841.8,841.17,0.88734715]
[1766686102209,0.20674352,841.8,841.16,0.88734715]
[1766686102505,0.20674352,841.8,841.17,0.88734715]
[1766686112718,0.20674352,841.8,841.16,0.88734715]
[1766686112918,0.20674352,841.8,841.15,0.88734715]
[1766686113516,0.20674352,841.8,841.14,0.88734715]
[1766686113916,0.20674352,841.8,841.08,0.88734715]
[1766686114118,0.88888896,841.65,840.78,0.88734715]
[1766686114322,0.88888896,841.67,840.76,0.88734715]
[1766686115018,0.20674352,841.8,839.92,0.01015077]
[1766686115019,0.88888896,841.65,840.75,0.88734715]
[1766686115223,0.88888896,841.65,840.71,0.88734715]
[1766686116323,0.88888896,841.67,840.7,0.88734715]
[1766686117123,0.88888896,841.67,840.69,0.88734715]
[1766686117422,0.88888896,841.68,840.68,0.88734715]
[1766686118322,0.88888896,841.69,840.67,0.88734715]
[1766686119220,0.88888896,841.7,840.66,0.88734715]
[1766686120125,0.88888896,841.71,840.66,0.88734715]
[1766686120319,0.88888896,841.71,840.65,0.88734715]
[1766686121124,0.88888896,841.72,840.65,0.88734715]
[1766686121420,0.88888896,841.72,840.64,0.88734715]
[1766686122121,0.88888896,841.73,840.64,0.88734715]
[1766686122421,0.88888896,841.73,840.63,0.88734715]
[1766686123422,0.88888896,841.74,840.62,0.88734715]
[1766686124325,0.88888896,841.75,840.62,0.88734715]
[1766686125222,0.88888896,841.75,840.61,0.88734715]
[1766686126229,0.88888896,841.76,840.61,0.88734715]
[1766686127327,0.88888896,841.77,840.61,0.88734715]
[1766686128331,0.88888896,841.78,840.6,0.88734715]
[1766686130227,0.88888896,841.79,840.59,0.88734715]
[1766686133335,0.88888896,841.79,840.58,0.88734715]
[1766686135433,0.20674352,841.8,840.6,0.88734715]
[1766686137134,0.20674352,841.8,840.6,13.60254685]
[1766686139234,1.09563248,841.8,840.6,13.60254685]
[1766686140237,1.09563248,841.8,840.61,0.88734715]
[1766686142934,0.88888896,841.78,840.6,0.88734715]
[1766686144236,0.88888896,841.77,840.6,0.88734715]
[1766686145241,0.88888896,841.77,840.61,0.88734715]
[1766686146540,0.88888896,841.76,840.61,0.88734715]
[1766686147441,0.88888896,841.76,840.62,0.88734715]
[1766686148239,0.88888896,841.75,840.63,0.88734715]
[1766686149241,0.88888896,841.74,840.63,0.88734715]
[1766686149440,0.88888896,841.74,840.64,0.88734715]
[1766686150242,0.88888896,841.73,840.64,0.88734715]
[1766686150538,0.88888896,841.73,840.65,0.88734715]
[1766686151342,0.88888896,841.73,840.49,1.18693386]
[1766686151343,0.88888896,841.72,840.66,0.88734715]
[1766686152246,0.88888896,841.71,840.67,0.88734715]
[1766686153246,0.88888896,841.69,840.68,0.88734715]
[1766686154344,0.20674352,841.8,840.7,0.88734715]
[1766686154345,0.88888896,841.68,840.7,0.88734715]
[1766686154947,0.88888896,841.67,840.69,0.88734715]
[1766686155344,0.88888896,841.65,840.71,0.88734715]
[1766686156249,0.88888896,841.63,840.73,0.88734715]
[1766686156950,0.88888896,841.62,840.72,0.88734715]
[1766686157149,0.88888896,841.61,840.71,0.88734715]
[1766686157445,0.88888896,841.6,840.76,0.88734715]
[1766686158350,0.88888896,841.53,840.82,0.88734715]
[1766686184566,0.88888896,841.63,840.93,0.88734715]
[1766686185374,0.88888896,841.64,840.92,0.88734715]
[1766686185673,0.88888896,841.65,840.93,0.88734715]
[1766686186271,0.88888896,841.66,840.92,0.88734715]
[1766686187474,0.88888896,841.67,840.91,0.88734715]
[1766686189472,0.88888896,841.68,840.9,0.88734715]
[1766686192277,0.88888896,841.69,840.89,0.88734715]
[1766686195380,0.88888896,841.69,840.88,0.88734715]
[1766686196682,0.88888896,841.67,840.86,0.88734715]
[1766686196978,0.88888896,841.66,840.84,0.88734715]
[1766686203787,0.88888896,841.65,840.84,0.88734715]
[1766686211195,0.88888896,841.64,840.84,0.88734715]
[1766686216302,0.88888896,841.64,840.85,0.88734715]
[1766686220207,0.88888896,841.63,840.85,0.88734715]
[1766686223420,0.88888896,841.63,840.86,0.88734715]
[1766686224221,0.88888896,841.62,840.86,0.88734715]
[1766686224419,0.88888896,841.63,840.86,0.88734715]
[1766686225121,0.88888896,841.62,840.86,0.88734715]
[1766686227422,0.88888896,841.62,840.87,0.88734715]
[1766686228223,0.88888896,841.61,840.87,0.88734715]
[1766686231327,0.88888896,841.61,840.88,0.88734715]
[1766686231726,0.88888896,841.57,840.84,0.88734715]
[1766686241330,0.88888896,841.58,840.86,0.88734715]
[1766686241531,0.88888896,841.58,840.3,55.52943005]
[1766686241532,0.88888896,841.65,840.93,0.88734715]
[1766686243128,0.88888896,841.66,840.92,0.88734715]
[1766686249137,0.88888896,841.66,840.91,0.88734715]
[1766686250136,0.88888896,841.67,840.91,0.88734715]
[1766686250937,0.20680987,841.49,840.91,0.88734715]
[1766686259052,0.20680987,841.49,840.9,0.88734715]
[1766686261356,0.20680987,841.49,840.89,0.88734715]
[1766686261956,0.20680987,841.49,840.88,0.88734715]
[1766686262156,0.20680987,841.49,840.87,0.88734715]
[1766686269662,0.20680987,841.49,840.88,0.88734715]
[1766686270662,0.20680987,841.49,840.87,0.88734715]
[1766686279065,0.20680987,841.49,840.88,0.88734715]
[1766686281573,0.20680987,841.49,840.87,0.88734715]
[1766686284272,0.20680987,841.49,840.88,0.88734715]
[1766686292378,0.20680987,841.49,840.87,0.88734715]
[1766686296679,0.20680987,841.49,840.86,0.88734715]
[1766686314094,0.20680987,841.49,840.71,1.18693386]
[1766686314293,0.20680987,841.49,840.86,0.8917045]
[1766686314598,0.20680987,841.49,840.86,13.68437279]
[1766686317794,0.20680987,841.49,840.86,0.8917045]
[1766686331214,0.20680987,841.49,840.87,0.8917045]
[1766686331813,0.20680987,841.49,840.86,0.8917045]
[1766686332214,0.20680987,841.49,840.87,0.8917045]
[1766686337110,0.20680987,841.49,840.88,0.8917045]
[1766686338814,0.20680987,841.49,840.88,13.80790753]
[1766686343118,0.20680987,841.49,840.88,0.8917045]
[1766686354129,0.20680987,841.49,840.04,0.01459392]
[1766686354130,0.20680987,841.49,840.9,0.8917045]
[1766686355525,0.20680987,841.49,840.9,13.70827312]
[1766686356430,0.20680987,841.49,840.9,12.81656862]
[1766686358629,0.20680987,841.49,840.89,0.8917045]
[1766686365932,0.20680987,841.49,840.91,0.8917045]
[1766686366838,0.20680987,841.49,840.91,13.70974256]
[1766686368337,0.20680987,841.49,840.91,12.81803806]
[1766686370638,0.20680987,841.49,840.9,0.8917045]
[1766686375744,0.20680987,841.49,840.92,0.8917045]
[1766686375941,0.20680987,841.49,840.61,1.7848977]
[1766686375942,0.20680987,841.49,840.94,0.8917045]
[1766686376342,0.20680987,841.49,840.93,0.8917045]
[1766686377042,0.20680987,841.49,840.93,13.64248879]
[1766686380548,0.20680987,841.49,840.94,0.8917045]
[1766686382744,0.20679021,841.65,841.02,0.8917045]
[1766686383346,0.20679021,841.65,841.01,0.8917045]
[1766686385249,0.20679021,841.65,841.0,0.8917045]
[1766686387351,0.20679021,841.65,840.99,0.8917045]
[1766686389149,0.20679021,841.65,841.06,0.8917045]
[1766686389353,0.20679021,841.65,841.05,0.8917045]
[1766686390449,0.20679021,841.65,841.04,0.8917045]
[1766686392253,0.20679021,841.65,841.03,0.8917045]
[1766686394261,0.20679021,841.65,841.02,0.8917045]
[1766686397261,0.20679021,841.65,841.01,0.8917045]
[1766686401165,0.20679021,841.65,840.86,1.18693386]
[1766686401366,0.20679021,841.65,841.01,0.88777635]
[1766686401666,0.20679021,841.65,841.01,13.64289228]
[1766686405971,0.20679021,841.65,841.01,0.88777635]
[1766686408373,0.20679021,841.65,841.02,0.88777635]
[1766686408969,0.20679021,841.65,841.01,0.88777635]
[1766686409374,0.20679021,841.65,841.02,0.88777635]
[1766686413777,0.20679021,841.65,841.04,0.88777635]
[1766686417279,0.20679021,841.65,841.05,0.88777635]
[1766686417680,0.20679021,841.65,841.05,13.88647057]
[1766686419379,0.20679021,841.65,841.06,0.88777635]
[1766686420381,0.20679021,841.65,841.07,0.88777635]
[1766686422384,0.20679021,841.65,841.08,0.88777635]
[1766686424482,0.20679021,841.65,841.09,0.88777635]
[1766686425483,0.20679021,841.65,841.09,14.02158831]
[1766686426384,0.20679021,841.65,841.1,0.88777635]
[1766686427284,0.20679021,841.65,841.11,0.88777635]
[1766686430284,0.20679021,841.65,841.12,0.88777635]
[1766686432483,0.20679021,841.65,841.13,0.88777635]
[1766686433482,0.20679021,841.65,841.14,0.88777635]
[1766686436690,0.20679021,841.65,841.11,13.95969769]
[1766686437684,0.20679021,841.65,841.11,0.88777635]
[1766686479413,0.20679021,841.65,841.12,0.88777635]
[1766686479613,0.20679021,841.65,841.12,13.59991428]
[1766686482722,0.20679021,841.65,841.12,0.88777635]
[1766686493127,0.20679021,841.65,841.13,0.88777635]
[1766686500733,0.20679021,841.65,841.11,0.88777635]
[1766686500931,0.20679021,841.65,841.06,0.88777635]
[1766686501536,0.20679021,841.65,841.05,0.88777635]
[1766686503538,0.20679021,841.65,841.04,0.88777635]
[1766686506436,0.20679021,841.65,841.03,0.88777635]
[1766686514540,0.20679021,841.65,841.02,0.88777635]
[1766686519548,0.8888762,841.79,841.02,0.88777635]
[1766686519746,0.20678345,841.61,841.02,0.88777635]
[1766686520147,0.8888762,841.79,841.02,0.88777635]
[1766686521347,0.20678345,841.61,841.02,0.88777635]
[1766686523247,0.20678345,841.61,841.01,0.88777635]
[1766686526348,0.20678345,841.61,841.02,0.88777635]
[1766686529751,0.8888762,841.78,841.02,0.88777635]
[1766686530054,0.20677669,841.67,841.02,0.88777635]
[1766686537362,0.20677669,841.67,840.87,1.18693386]
[1766686537363,0.20677669,841.67,841.03,0.88777635]
[1766686542362,0.20677669,841.67,841.04,0.88777635]
[1766686544368,0.20677669,841.67,841.05,0.88777635]
[1766686545869,0.8888762,841.65,841.03,8.97086027]
[1766686546070,0.8888762,841.65,840.96,0.88777635]
[1766686546565,0.8888762,841.65,840.81,1.18693386]
[1766686546566,1.09565289,841.67,840.94,0.88777635]
[1766686547472,1.09565289,841.67,840.93,0.88777635]
[1766686548368,0.20677669,841.67,840.93,0.88777635]
[1766686549372,0.20677669,841.67,840.92,0.88777635]
[1766686552479,0.20677669,841.67,840.91,0.88777635]
[1766686552870,0.20677669,841.67,840.9,0.88777635]
[1766686555474,0.20677669,841.67,840.89,0.88777635]
[1766686559379,0.20677669,841.67,840.88,0.88777635]
[1766686573794,0.20677669,841.67,840.86,0.88777635]
[1766686577192,1.09565289,841.67,840.86,0.88777635]
[1766686577492,1.09565289,841.67,840.85,0.88777635]
[1766686581403,0.8888762,841.66,840.85,0.88777635]
[1766686582201,1.09565289,841.67,840.85,0.88777635]
[1766686582405,0.8888762,841.66,840.86,0.88777635]
[1766686582604,0.8888762,841.66,840.86,9.94497744]
[1766686583207,0.8888762,841.66,840.86,9.05720109]
[1766686583405,0.20677669,841.67,840.86,9.05720109]
[1766686583406,0.8888762,841.65,840.86,9.05720109]
[1766686585505,0.8888762,841.65,840.86,9.94497744]
[1766686586509,0.8888762,841.64,840.86,0.88777635]
[1766686587706,0.8888762,841.63,840.86,0.88777635]
[1766686589313,0.8888762,841.62,840.87,0.88777635]
[1766686590410,0.8888762,841.61,840.88,0.88777635]
[1766686591113,0.8888762,841.6,840.86,0.88777635]
[1766686591511,0.20682954,841.46,840.86,0.88777635]
[1766686591710,0.20682954,841.46,840.84,9.05963657]
[1766686594118,0.20682954,841.46,840.83,0.88777635]
[1766686595217,0.20682954,841.46,840.82,0.88777635]
[1766686602029,0.20682954,841.46,840.8,0.88777635]
[1766686620439,0.20682954,841.46,840.81,0.88777635]
[1766686620942,0.20682954,841.46,840.79,0.88777635]
[1766686621147,0.8888762,841.45,840.69,0.88777635]
[1766686621646,1.09570574,841.46,840.68,0.88777635]
[1766686623446,0.20682954,841.46,840.67,0.88777635]
[1766686624849,0.20682954,841.46,840.66,0.88777635]
[1766686626451,0.20682954,841.46,840.65,0.88777635]
[1766686632556,0.20682954,841.46,840.64,0.88777635]
[1766686633154,0.20682954,841.46,840.65,0.88777635]
[1766686633357,0.20682954,841.46,840.64,0.88777635]
[1766686639262,1.09570574,841.46,840.62,0.88777635]
[1766686639458,0.8888762,841.41,840.56,0.88777635]
[1766686640362,0.8888762,841.42,840.56,0.88777635]
[1766686641365,0.8888762,841.42,840.55,0.88777635]
[1766686643265,0.8888762,841.42,840.56,0.88777635]
[1766686643568,0.8888762,841.43,840.55,0.88777635]
[1766686647172,0.8888762,841.35,840.47,0.88777635]
[1766686647374,0.8888762,841.36,840.47,0.88777635]
[1766686649375,0.8888762,841.37,840.46,0.88777635]
[1766686651771,0.8888762,841.36,840.45,0.88777635]
[1766686652376,0.8888762,841.37,840.45,0.88777635]
[1766686652577,0.8888762,841.37,840.42,0.88777635]
[1766686652777,0.8888762,841.3,840.38,0.88777635]
[1766686653174,0.8888762,841.28,840.36,0.88777635]
[1766686653378,0.8888762,841.22,840.28,0.88777635]
[1766686654480,0.8888762,841.23,840.27,0.88777635]
[1766686655479,0.8888762,841.24,840.26,0.88777635]
[1766686656378,0.8888762,841.25,840.26,0.88777635]
[1766686657281,0.8888762,841.24,840.26,0.88777635]
[1766686657481,0.8888762,841.25,840.25,0.88777635]
[1766686658579,1.18586977,841.4,840.25,0.88777635]
[1766686658580,0.8888762,841.26,840.25,0.88777635]
[1766686659284,0.8888762,841.25,840.25,0.88777635]
[1766686659481,0.8888762,841.26,840.24,0.88777635]
[1766686660186,0.8888762,841.26,840.25,0.88777635]
[1766686660389,0.8888762,841.26,840.24,0.88777635]
[1766686661189,0.8888762,841.26,840.25,0.88777635]
[1766686661486,0.8888762,841.26,840.24,0.88777635]
[1766686662789,0.8888762,841.25,840.23,0.88777635]
[1766686663185,0.8888762,841.25,840.24,0.88777635]
[1766686663389,0.8888762,841.25,840.23,0.88777635]
[1766686664189,0.20682954,841.46,840.23,0.88777635]
[1766686664190,0.8888762,841.24,840.23,0.88777635]
[1766686664490,0.8888762,841.21,840.2,0.88777635]
[1766686665590,0.8888762,841.22,840.2,0.88777635]
[1766686666587,0.8888762,841.22,840.19,0.88777635]
[1766686667392,0.8888762,841.23,840.19,0.88777635]
[1766686670494,0.8888762,841.23,840.18,0.88777635]
[1766686671297,0.8888762,841.23,840.19,0.88777635]
[1766686671595,0.8888762,841.23,840.18,0.88777635]
[1766686675399,0.8888762,841.23,840.19,0.88777635]
[1766686675694,0.8888762,841.23,840.19,9.98808888]
[1766686677396,0.8888762,841.22,840.19,9.98808888]
[1766686677800,0.8888762,841.22,840.19,9.10031253]
[1766686677995,0.8888762,841.19,840.19,9.10031253]
[1766686679401,0.8888762,841.18,840.16,0.88777635]
[1766686680400,0.8888762,841.18,840.17,0.88777635]
[1766686681401,0.8888762,841.17,840.17,0.88777635]
[1766686682200,0.8888762,841.18,840.17,0.88777635]
[1766686682400,0.8888762,841.17,840.18,0.88777635]
[1766686683402,0.8888762,841.16,840.18,0.88777635]
[1766686684302,0.8888762,841.16,840.19,0.88777635]
[1766686685199,0.8888762,841.17,840.19,0.88777635]
[1766686685504,0.8888762,841.17,840.21,0.88777635]
[1766686686401,0.8888762,841.17,840.21,9.98100393]
[1766686687401,0.8888762,841.16,840.22,0.88777635]
[1766686688405,0.8888762,841.15,840.22,0.88777635]
[1766686689200,0.8888762,841.15,840.23,0.88777635]
[1766686690403,0.8888762,841.15,840.08,1.18693386]
[1766686690404,0.8888762,841.14,840.24,0.88777635]
[1766686691502,0.8888762,841.13,840.25,0.88777635]
[1766686692205,0.8888762,841.12,840.25,0.88777635]
[1766686692505,0.8888762,841.12,840.26,0.88777635]
[1766686693005,0.8888762,841.1,840.24,0.88777635]
[1766686693205,0.8888762,841.04,840.17,0.88777635]
[1766686693402,1.18586977,841.19,840.18,0.88777635]
[1766686693403,0.8888762,841.03,840.18,0.88777635]
[1766686694202,0.8888762,841.04,840.18,0.88777635]
[1766686694407,0.8888762,841.03,840.19,0.88777635]
[1766686695207,0.8888762,841.03,840.18,0.88777635]
[1766686695508,0.8888762,841.02,840.19,0.88777635]
[1766686696408,0.8888762,841.01,840.2,0.88777635]
[1766686697403,0.8888762,841.0,840.2,0.88777635]
[1766686697606,0.8888762,841.0,840.21,0.88777635]
[1766686699206,0.8888762,841.01,840.21,0.88777635]
[1766686703518,0.8888762,841.01,840.2,0.88777635]
[1766686704618,0.8888762,841.12,840.32,0.88777635]
[1766686704819,0.8888762,841.12,840.32,9.91300733]
[1766686707420,0.8888762,841.11,840.32,9.91300733]
[1766686708620,0.8888762,841.11,840.32,0.88777635]
[1766686713419,0.8888762,841.12,840.32,0.88777635]
[1766686730147,0.8888762,841.12,840.31,0.88777635]
[1766686730344,0.8888762,841.12,840.32,0.88777635]
[1766686731349,0.8888762,841.12,840.31,0.88777635]
[1766686739252,0.8888762,841.12,840.32,0.88777635]
[1766686739656,0.8888762,841.12,840.32,9.97771805]
[1766686741156,0.8888762,841.11,840.32,9.97771805]
[1766686743363,0.8888762,841.11,840.33,0.88777635]
[1766686744264,0.8888762,841.1,840.33,0.88777635]
[1766686746263,0.8888762,841.1,840.34,0.88777635]
[1766686747262,0.8888762,841.09,840.35,0.88777635]
[1766686747965,0.8888762,841.09,840.35,9.7790695]
[1766686748162,0.8888762,841.08,840.35,9.7790695]
[1766686749163,0.8888762,841.06,840.38,0.88777635]
[1766686749762,0.8888762,841.06,840.37,0.88777635]
[1766686758274,0.8888762,841.06,840.38,0.88777635]
[1766686763280,0.8888762,841.05,840.37,0.88777635]
[1766686791797,0.20695623,840.95,840.37,0.88777635]
[1766686793302,1.09583243,840.95,840.27,0.88777635]
[1766686793602,0.8888762,840.57,839.88,0.88777635]
[1766686793803,0.8888762,840.64,839.95,0.88777635]
[1766686794103,0.8888762,840.53,839.83,8.92964646]
[1766686794302,0.68634557,840.52,839.83,8.92964646]
[1766686794504,0.68634557,840.51,839.83,8.92964646]
[1766686794699,0.68634557,840.5,839.83,8.92964646]
[1766686794903,0.68634557,840.49,839.83,8.92964646]
[1766686795202,0.68634557,840.48,839.83,8.92964646]
[1766686795403,0.8888762,840.86,839.83,8.92964646]
[1766686795600,1.87497831,840.85,839.83,8.92964646]
[1766686795902,1.87497831,840.84,839.83,8.92964646]
[1766686796098,1.87497831,840.83,839.83,8.92964646]
[1766686796303,1.87497831,840.82,839.83,8.92964646]
[1766686796500,1.87497831,840.81,839.83,8.92964646]
[1766686796701,1.87497831,840.8,839.83,8.92964646]
[1766686796899,1.87497831,840.79,839.83,8.92964646]
[1766686797103,0.6844336,840.78,839.83,8.92964646]
[1766686797400,0.6844336,840.77,839.83,8.92964646]
[1766686797703,0.6844336,840.76,839.83,8.92964646]
[1766686797904,0.6844336,840.75,839.65,1.7848977]
[1766686798104,0.6844336,840.74,839.65,1.7848977]
[1766686798305,0.6844336,840.73,839.64,1.7848977]
[1766686798602,0.6844336,840.72,839.64,1.7848977]
[1766686798801,0.6844336,840.71,839.64,1.7848977]
[1766686799104,0.6844336,840.7,839.64,1.7848977]
[1766686799404,0.6844336,840.69,839.64,1.7848977]
[1766686799603,0.6844336,840.68,839.64,1.7848977]
[1766686799802,0.6844336,840.67,839.64,1.7848977]
[1766686800000,0.8888762,840.88,839.64,1.7848977]
[1766686800001,0.6844336,840.66,839.64,1.7848977]
[1766686800203,0.6844336,840.65,839.64,1.7848977]
[1766686800402,0.8888762,840.94,839.7,1.7848977]
[1766686800707,1.87455154,840.93,839.7,10.80562143]
[1766686800902,1.87455154,840.92,839.71,1.7848977]
[1766686801104,1.87455154,840.91,839.71,1.7848977]
[1766686801401,1.87455154,840.9,839.71,1.7848977]
[1766686801602,1.87455154,840.89,839.71,1.7848977]
[1766686801807,1.87455154,840.88,839.71,1.7848977]
[1766686802003,1.87455154,840.87,839.71,1.7848977]
[1766686802207,0.68408903,840.86,839.71,1.7848977]
[1766686802508,0.68408903,840.85,839.71,1.7848977]
[1766686802706,0.68408903,840.84,839.71,1.7848977]
[1766686802905,0.68408903,840.83,839.71,1.7848977]
[1766686803204,0.68408903,840.82,839.71,1.7848977]
[1766686803405,0.68408903,840.81,839.71,1.7848977]
[1766686803707,1.09583243,840.95,839.1,2.95491084]
[1766686803708,0.68408903,840.8,839.78,1.7848977]
[1766686803908,0.68408903,840.79,839.78,1.7848977]
[1766686804107,0.68408903,840.78,839.78,1.7848977]
[1766686804308,0.68408903,840.77,839.78,1.7848977]
[1766686804506,0.68408903,840.76,839.78,1.7848977]
[1766686804704,0.20695623,840.95,839.78,1.7848977]
[1766686804904,1.87445162,840.94,839.78,1.7848977]
[1766686805107,0.68411334,840.93,839.78,1.7848977]
[1766686805411,0.68411334,840.92,839.78,1.7848977]
[1766686805610,0.68411334,840.91,839.78,1.7848977]
[1766686805908,0.68411334,840.9,839.78,1.7848977]
[1766686806107,0.68411334,840.89,839.78,1.7848977]
[1766686806306,0.68411334,840.88,839.78,1.7848977]
[1766686806505,0.68411334,840.87,839.78,1.7848977]
[1766686806710,0.68411334,840.86,839.78,1.7848977]
[1766686806908,0.68411334,840.85,839.8,55.18354702]
[1766686807108,0.68411334,840.84,839.8,55.18354702]
[1766686807310,0.68411334,840.83,839.8,55.18354702]
[1766686807509,0.68411334,840.82,839.8,55.18354702]
[1766686807712,0.68411334,840.81,839.8,55.18354702]
[1766686808012,0.68411334,840.8,839.8,55.18354702]
[1766686808213,0.68411334,840.79,839.8,55.18354702]
[1766686808511,0.68411334,840.78,839.8,55.18354702]
[1766686808711,0.20695623,840.95,839.82,1.7848977]
[1766686809013,0.6841152,840.94,839.83,1.7848977]
[1766686809212,0.20695623,840.95,839.82,1.7848977]
[1766686809213,0.6841152,840.93,839.82,1.7848977]
[1766686809414,0.6841152,840.92,839.83,1.7848977]
[1766686809714,0.6841152,840.91,839.83,1.7848977]
[1766686809915,0.6841152,840.9,839.83,1.7848977]
[1766686810116,0.6841152,840.89,839.83,1.7848977]
[1766686810414,0.6841152,840.88,839.83,1.7848977]
[1766686810712,0.6841152,840.87,839.83,1.7848977]
[1766686811011,0.6841152,840.86,839.83,1.7848977]
[1766686811215,0.6841152,840.85,839.82,1.7848977]
[1766686811414,0.6841152,840.84,839.83,1.7848977]
[1766686811613,0.6841152,840.83,839.83,1.7848977]
[1766686811816,0.6841152,840.82,839.83,1.7848977]
[1766686812012,0.6841152,840.81,839.83,1.7848977]
[1766686812217,0.6841152,840.8,839.82,1.7848977]
[1766686812413,0.20695623,840.95,839.83,1.7848977]
[1766686812619,0.68413023,840.94,839.83,1.7848977]
[1766686812817,0.68413023,840.93,839.83,1.7848977]
[1766686813018,0.68413023,840.92,839.83,1.7848977]
[1766686813218,0.68413023,840.91,839.83,1.7848977]
[1766686813518,0.68413023,840.9,839.83,1.7848977]
[1766686813718,0.68413023,840.89,839.83,10.66233957]
[1766686813919,0.68413023,840.88,839.83,10.66233957]
[1766686814115,0.68413023,840.87,839.83,10.66233957]
[1766686814316,0.68413023,840.86,839.83,8.87744187]
[1766686814516,0.68413023,840.85,839.83,10.66233957]
[1766686814825,0.68413023,840.84,839.83,10.66233957]
[1766686815015,0.68413023,840.83,839.83,10.66233957]
[1766686815320,0.68413023,840.82,839.83,10.66233957]
[1766686815515,0.68413023,840.81,839.83,10.66233957]
[1766686815717,0.68413023,840.8,839.83,10.66233957]
[1766686815919,0.20695623,840.95,839.83,10.66233957]
[1766686816215,0.68414174,840.94,839.83,10.66233957]
[1766686816419,0.68414174,840.93,839.83,10.66233957]
[1766686816617,0.68414174,840.92,839.83,10.66233957]
[1766686816824,0.68414174,840.91,839.83,10.66233957]
[1766686817021,0.68414174,840.9,839.83,10.66233957]
[1766686817220,0.68414174,840.89,839.83,1.7848977]
[1766686817421,0.68414174,840.88,839.83,1.7848977]
[1766686817717,0.68414174,840.87,839.83,1.7848977]
[1766686817921,0.68414174,840.86,839.83,1.7848977]
[1766686818121,0.68414174,840.85,839.83,1.7848977]
[1766686818322,0.68414174,840.84,839.83,1.7848977]
[1766686818621,0.68414174,840.83,839.83,1.7848977]
[1766686818916,0.68414174,840.82,839.83,1.7848977]
[1766686819220,0.68414174,840.81,839.83,1.7848977]
[1766686819421,0.68414174,840.8,839.83,1.7848977]
[1766686819721,0.20695623,840.95,839.83,1.7848977]
[1766686819917,0.68415768,840.94,839.83,1.7848977]
[1766686820119,0.68415768,840.93,839.83,1.7848977]
[1766686820319,0.68415768,840.92,839.83,1.7848977]
[1766686820620,0.68415768,840.91,839.83,1.7848977]
[1766686820821,0.68415768,840.9,839.83,1.7848977]
[1766686821019,0.68415768,840.89,839.83,1.7848977]
[1766686821317,0.68415768,840.88,839.83,1.7848977]
[1766686821521,0.68415768,840.87,839.83,1.7848977]